Cogmind - Beta 16 @@@ ROGUE MODE // 2025.12.26 @ 18:57:12 Player: Moose Result: Destroyed by H-55 Commando with Gauss Rifle Performance ------------- Evolutions (2) 1000 Regions Visited (7) 1400 Robots Destroyed (87) 435 Value Destroyed (2463) 2463 Prototype IDs (3) 60 Alien Tech Used (0) 0 Bonus (60) 60 TOTAL SCORE: 5418 Bonus ------- Follower Combat Kills 60 Cogmind --------- Core Integrity 0/550 Matter 204/300 Energy 19/100 System Corruption 21% Temperature Cool (0) Movement Treading (480) Ox4 Location -8/Materials Parts ------- > --- POWER (1) -------- (None) > --- PROPULSION (4) --- Light Treads > --- UTILITY (4) ------ Huge Storage Unit Sensor Array Backup Plating I Backup Plating I > --- WEAPON (2) ------- Beam Cannon > --- INVENTORY (25) --- Light Nuclear Core Makeshift Power Source Aluminum Leg Aluminum Leg Heat Sink Improved Heat Sink Improved Heat Sink High-capacity Storage Unit Large Battery (200) Large Matter Pod (150) Structural Scanner Visual Processing Unit ECM Suite Tractor Beam Peak State ------------ > --- POWER ------------ Improved Ion Engine > --- PROPULSION ------- Light Treads Light Treads Light Treads Light Treads > --- UTILITY ---------- Huge Storage Unit Signal Interpreter Improved Light Armor Plating Makeshift Hacking Suite > --- WEAPON ----------- Heavy Assault Rifle Heavy Assault Rifle > --- INVENTORY -------- Improved Ion Engine Makeshift Power Source Aluminum Leg Aluminum Leg Aluminum Leg Aluminum Leg Heat Sink High-capacity Storage Unit Large Battery Large Matter Pod Structural Scanner Visual Processing Unit Sensor Array ECM Suite Core Shielding Backup Plating I Backup Plating I Tractor Beam Particle Gun Beam Cannon Heavy Assault Rifle Autogun [Rating: 22] Favorites ----------- Power Improved Ion Engine Engine Improved Ion Engine Power Core Light Nuclear Core Propulsion Light Treads Treads Light Treads Leg Aluminum Leg Utility Signal Interpreter Device Structural Scanner Storage Huge Storage Unit Processor Signal Interpreter Hackware Makeshift Hacking Suite Protection Improved Light Armor Plating Weapon Heavy Assault Rifle Energy Gun Improved Medium Laser Energy Cannon Beam Cannon Ballistic Gun Heavy Assault Rifle Ballistic Cannon Assault Cannon Launcher Grenade Launcher Build | -11 -10 -10 -9 -9 -9 -8 -8 ------- Run | Yrd Mat Min Mat Min Exi Min Mat Slots Evolved 4 | . . . 2 . . . 2 Power . | . . . . . . . . Propulsion 2 | . . . 2 . . . . Utility 2 | . . . . . . . 2 Weapon . | . . . . . . . . Parts Attached 53 | 6 12 2 13 . . . 20 Power 7 | 1 1 . 2 . . . 3 Engine 4 | 1 . . 2 . . . 1 Core 3 | . 1 . . . . . 2 Reactor . | . . . . . . . . Propulsion 19 | 2 2 1 9 . . . 5 Treads 10 | 2 . 1 5 . . . 2 Leg 9 | . 2 . 4 . . . 3 Wheel . | . . . . . . . . Hover . | . . . . . . . . Flight . | . . . . . . . . Utility 11 | 1 4 . . . . . 6 Device 2 | . 1 . . . . . 1 Storage 3 | 1 2 . . . . . . Processor 1 | . 1 . . . . . . Hackware 1 | . . . . . . . 1 Protection 4 | . . . . . . . 4 Artifact . | . . . . . . . . Weapon 16 | 2 5 1 2 . . . 6 Energy Gun 7 | 1 3 1 . . . . 2 Energy Cannon 1 | . 1 . . . . . . Ballistic Gun 6 | 1 . . 2 . . . 3 Ballistic Cannon 1 | . . . . . . . 1 Launcher 1 | . 1 . . . . . . Special Weapon . | . . . . . . . . Impact Weapon . | . . . . . . . . Slashing Weapon . | . . . . . . . . Piercing Weapon . | . . . . . . . . Special Melee Weapon . | . . . . . . . . Unidentified Prototypes 2 | . 1 . 1 . . . . Corrupted Parts 1 | . . . . . . . 1 System Corruption 6 | . . . . . . . 6 Parts Lost 33 | . 2 2 3 1 . . 25 Power 5 | . . . 1 . . . 4 Propulsion 17 | . 1 2 2 1 . . 11 Utility 4 | . . . . . . . 4 Weapon 7 | . 1 . . . . . 6 Highest Loss Streak 12 | . 2 2 2 1 . . 12 To Critical Strikes . | . . . . . . . . Average Backups 18 | 2 14 19 21 21 21 22 19 Power 1 | 1 1 1 2 2 2 2 2 Propulsion 4 | . 4 4 6 5 5 5 2 Utility 9 | . 5 9 10 12 12 13 12 Weapon 2 | . 3 4 2 2 2 2 2 Tool/Special . | . . . . . . . . Unused Backups 18 | . 4 1 3 . . . 10 Power 4 | . 2 1 . . . . 1 Propulsion 1 | . . . . . . . 1 Utility 10 | . 2 . . . . . 8 Weapon 3 | . . . 3 . . . . Tool/Special . | . . . . . . . . Average Slot Usage (%) 97 | . 99 99 99 99 100 100 82 Engine 8 | . 12 . 3 11 11 11 4 Core 3 | . 1 14 7 . . . 2 Treads 25 | . 7 26 38 43 44 44 14 Leg 9 | . 20 1 4 . . . 13 Device 1 | . 3 . . . . . . Storage 12 | . 14 14 11 11 11 11 9 Processor 10 | . 10 14 11 11 11 11 6 Energy Gun 10 | . 18 28 7 . . . 5 Ballistic Gun 11 | . 4 . 14 22 22 22 10 Launcher 1 | . 3 . . . . . . Peak Build Rating 22 | 6 15 17 20 15 15 15 22 Average Rating 14 | 4 11 14 16 14 15 15 18 On Entrance 12 | . 6 15 17 15 15 15 15 Avg Prop Armor Cover (%) 13 | . . . . . . . 13 Naked Turns . | . . . . . . . . Heaviest Build 96 | 14 51 53 93 93 93 93 96 Greatest Support 80 | 40 40 40 80 80 80 80 80 Greatest Overweight (x) 29 | 2 2 5 1 1 1 1 29 Average Overweight (x) 1 | . 1 1 1 1 1 1 2 Largest Inventory Capacity 25 | 8 25 20 25 25 25 25 25 Average Capacity 22 | 7 18 20 24 25 25 25 25 Most Carried 25 | 6 20 20 24 22 22 22 25 Average Carried 18 | 2 14 19 21 21 21 22 19 Final Capacity 25 | 8 20 20 25 25 25 25 25 Final Carried 22 | 2 20 20 22 21 22 22 14 Class Distribution -------------------- 54% | Scavenger-Mutant 45% | Mutant Dominant Class ---------------- Mutant | -10/Materials Mutant | -10/Mines Scavenger-Mutant | -9/Materials Scavenger-Mutant | -9/Mines Scavenger-Mutant | -9/Exiles Scavenger-Mutant | -8/Mines Scavenger-Mutant | -8/Materials Resources | -11 -10 -10 -9 -9 -9 -8 -8 ----------- Run | Yrd Mat Min Mat Min Exi Min Mat Matter Collected 1904 | 229 679 57 260 63 . 33 583 Remotely . | . . . . . . . . Salvage Created 3070 | . 828 164 805 63 20 . 1190 Parts 184 | . 53 9 53 8 . . 61 Haulers Intercepted . | . . . . . . . . Recyclers Shooed 3 | . 1 . 1 . . . 1 Parts Field Recycled . | . . . . . . . . Retrieved Matter . | . . . . . . . . Parts Self-Destructed . | . . . . . . . . Prevented . | . . . . . . . . Parts Restored . | . . . . . . . . Kills | -11 -10 -10 -9 -9 -9 -8 -8 ------- Run | Yrd Mat Min Mat Min Exi Min Mat Combat Hostiles Destroyed 67 | . 13 6 20 4 . . 24 Guns 59 | . 7 6 20 4 . . 22 Cannons 4 | . 2 . . . . . 2 AOE 4 | . 4 . . . . . . Classes Destroyed 8 | . 5 1 2 . . . . Worker 6 | . 4 . 1 . . . 1 Builder 5 | . 2 . 1 . . . 2 Recycler 4 | . 3 . . . . . 1 Watcher 5 | . 3 . 2 . . . . Swarmer 16 | . . 3 7 4 . . 2 Grunt 38 | . 13 3 6 . . . 16 Brawler 2 | . . . 1 . . . 1 Sentry 11 | . . . 6 . . . 5 Best Kill Streak 10 | . 7 3 4 3 . . 10 Combat Bots Only 10 | . 3 3 4 3 . . 10 Max Kills in Single Turn 4 | . 4 1 2 1 . . 1 Gunslinging 1 | . . . 1 . . . . Exploded 1 | . 1 . . . . . . Melee . | . . . . . . . . Uniques/NPCs Destroyed . | . . . . . . . . Combat | -11 -10 -10 -9 -9 -9 -8 -8 -------- Run | Yrd Mat Min Mat Min Exi Min Mat Hostile Shots Fired 451 | . 74 51 85 24 . . 217 Missed 109 | . 22 9 25 4 . . 49 Hits 342 | . 52 42 60 20 . . 168 Melee 6 | . . . . . . . 6 Projectile 336 | . 52 42 60 20 . . 162 Critical Strikes 10 | . 1 1 . . . . 8 Actively Blocked 1 | . . . . . . . 1 Damage Taken 4611 | . 724 364 686 162 . . 2675 Core 890 | . 126 74 114 21 . . 555 Absorbed by Shields . | . . . . . . . . Redirected to Shielding 40 | . . . . . . . 40 Core Remaining (%) 62 | 100 . 20 . . . 66 . Volleys Fired 201 | . 44 13 47 12 . . 85 Largest 2 | . 2 2 2 2 . . 2 Hottest 131 | . 112 112 131 46 . . 102 Shots Fired 392 | . 86 28 94 24 1 1 158 Gun 353 | . 66 28 94 24 1 1 139 Cannon 29 | . 10 . . . . . 19 Launcher 10 | . 10 . . . . . . Special . | . . . . . . . . Kinetic 215 | . 23 . 67 24 1 1 99 Thermal 167 | . 53 28 27 . . . 59 Explosive 10 | . 10 . . . . . . Electromagnetic . | . . . . . . . . Robot Hit Streak 26 | . 9 9 14 3 2 . 26 Robot Miss Streak 6 | . 4 2 3 6 . 1 4 Penetration Max . | . . . . . . . . Secondary Targets 7 | . . 1 3 1 . . 2 Max Gunslinging Chain 1 | . . 1 1 1 . . 1 Shots Hit Robots 242 | . 46 18 59 9 1 . 109 Core Hits 135 | . 41 7 31 4 1 1 50 Critical Kills . | . . . . . . . . Critical Parts Destroyed 1 | . . . 1 . . . . Critical Strikes 6 | . 1 1 1 . . . 3 Burn 4 | . 1 1 . . . . 2 Destroy 1 | . . . 1 . . . . Blast 1 | . . . . . . . 1 Melee Attacks . | . . . . . . . . Impact . | . . . . . . . . Slashing . | . . . . . . . . Piercing . | . . . . . . . . Sneak Attacks . | . . . . . . . . Combat Hostiles . | . . . . . . . . Follow-up Attacks . | . . . . . . . . Damage Inflicted 4919 | . 1356 314 1081 134 14 53 1967 Guns 3674 | . 602 304 991 134 14 . 1629 Cannons 455 | . 121 . . . . . 334 Explosions 577 | . 577 . . . . . . Melee . | . . . . . . . . Ramming 213 | . 56 10 90 . . 53 4 Kinetic 2334 | . 177 . 672 134 14 . 1337 Thermal 1795 | . 546 304 319 . . . 626 Explosive 577 | . 577 . . . . . . Electromagnetic . | . . . . . . . . Impact . | . . . . . . . . Slashing . | . . . . . . . . Piercing . | . . . . . . . . Highest Corruption 15 | . 6 6 3 3 3 3 15 Average Corruption 4 | . 5 6 3 3 3 3 13 Corruption Purged . | . . . . . . . . Corruption Blocked . | . . . . . . . . Effects 114 | . 48 17 5 8 11 17 8 Message Errors 20 | . 6 3 . 2 . 7 2 Matter Fused 33 | . 17 4 3 2 1 4 2 Heat Flow Errors 12 | . 6 2 . 1 1 2 . Energy Discharges 11 | . 4 2 . . 1 2 2 Parts Fused 1 | . . . 1 . . . . Data Loss (minor) 18 | . 10 1 . 2 4 1 . Data Loss (major) 9 | . 4 3 . 1 1 . . Misfires 6 | . 1 2 1 . 1 1 . Alerts 3 | . . . . . 2 . 1 Weapon Failures 1 | . . . . . . . 1 Overload Shots . | . . . . . . . . Overflow Damage 23 | . 23 . . . . . . Projectiles . | . . . . . . . . Explosions 23 | . 23 . . . . . . Melee . | . . . . . . . . Knockbacks 7 | . . . 1 . . 1 5 Impact 2 | . . . 1 . . 1 . Kinetic 5 | . . . . . . . 5 Secondary . | . . . . . . . . Self-Inflicted Damage 68 | . 68 . . . . . . Shots 4 | . 4 . . . . . . Rammed 15 | . . 2 8 . . 5 . Targets Rammed 27 | . 7 3 9 . . 5 3 Kicked 11 | . 7 1 . . . . 3 Crushed 1 | . . . 1 . . . . Highest Temperature 483 | . 363 233 260 171 89 272 483 Average Temperature 134 | . 111 93 92 89 47 112 197 Received Heat Transfer 1896 | . 393 57 159 . . . 1287 Effects 11 | . . . 4 . . . 7 Shutdowns 3 | . . . . . . . 3 Interference 5 | . . . 4 . . . 1 Damage (minor) 3 | . . . . . . . 3 Siege Activations . | . . . . . . . . Martial Activations . | . . . . . . . . Shielding Activations . | . . . . . . . . Robots Disrupted . | . . . . . . . . Combat Hostiles . | . . . . . . . . Robots Corrupted . | . . . . . . . . Combat Hostiles . | . . . . . . . . Parts Fried . | . . . . . . . . Impact Corruptions . | . . . . . . . . Robots Melted . | . . . . . . . . Combat Hostiles . | . . . . . . . . Parts Melted 4 | . 2 1 . . . . 1 Heat Transferred 4218 | . 1258 740 592 . . . 1628 Parts Sabotaged . | . . . . . . . . Parts Stolen . | . . . . . . . . Parts Stripped . | . . . . . . . . Power Chain Reactions . | . . . . . . . . Alert | -11 -10 -10 -9 -9 -9 -8 -8 ------- Run | Yrd Mat Min Mat Min Exi Min Mat Maximum Alert Level . | . . . . . . . . Low Security (%) 100 | 100 100 100 100 100 . 100 100 Level 1 . | . . . . . . . . Level 2 . | . . . . . . . . Level 3 . | . . . . . . . . Level 4 . | . . . . . . . . Level 5 . | . . . . . . . . High Security . | . . . . . . . . Max Security . | . . . . . . . . Peak Influence 179 | . 139 70 122 129 . . 179 Initial 33 | . . 9 . 33 . . . Average 34 | . 30 14 60 42 . . 46 Influence Increases 1970 | . 444 171 555 169 . . 631 Destroy 0b10 Robot/C 1380 | . 260 140 400 80 . . 500 Destroy 0b10 Robot/NC 100 | . 60 . 20 . . . 20 Destroy Leader 330 | . 76 30 114 10 . . 100 Allied During Kill 4 | . . 1 . . . . 3 Successful Hack 31 | . . . 21 4 . . 6 Disable Machine 30 | . . . . 30 . . . Destroy Structure 50 | . 48 . . . . . 2 Lose Combat Pursuer 45 | . . . . 45 . . . Influence Decreases 1855 | . 418 197 469 255 . . 516 Entered New Map 70 | . . 17 . 53 . . . Time Decay 1395 | . 372 131 439 192 . . 261 Lost Part 304 | . 20 9 30 10 . . 235 Lost Ally 60 | . . 40 . . . . 20 Purge Threat 26 | . 26 . . . . . . Squads Dispatched 17 | . 5 . 4 . . . 8 Investigation 8 | . 4 . 3 . . . 1 Extermination . | . . . . . . . . Reinforcement 6 | . 1 . 1 . . . 4 Assault . | . . . . . . . . Garrison 3 | . . . . . . . 3 Intercept . | . . . . . . . . Searches Triggered . | . . . . . . . . Construction Impeded 2 | . . . . . . . 2 Haulers Reinforced . | . . . . . . . . Active Scanning Responses . | . . . . . . . . Cargo Convoy Interrupts . | . . . . . . . . Stealth | -11 -10 -10 -9 -9 -9 -8 -8 --------- Run | Yrd Mat Min Mat Min Exi Min Mat Distress Signals 4 | . 2 . 2 . . . . Communications Jammed . | . . . . . . . . Distress Signals . | . . . . . . . . Times Spotted 94 | . 20 7 28 7 . . 32 Peak Tracking Total 9 | . 4 3 4 4 . . 9 Tactical Retreats 1 | . . . . 1 . . . Traps | -11 -10 -10 -9 -9 -9 -8 -8 ------- Run | Yrd Mat Min Mat Min Exi Min Mat Traps Triggered 5 | . 4 . 1 . . . . Indirectly . | . . . . . . . . Trap Hack Attempts . | . . . . . . . . Triggered . | . . . . . . . . Disarmed 4 | . 4 . . . . . . Reprogrammed . | . . . . . . . . Reused . | . . . . . . . . Traps Extracted . | . . . . . . . . Installed . | . . . . . . . . Triggered . | . . . . . . . . Machines | -11 -10 -10 -9 -9 -9 -8 -8 ---------- Run | Yrd Mat Min Mat Min Exi Min Mat Machines Disabled 2 | . . . . 2 . . . Max in Single Turn 1 | . . . . 1 . . . Machines Repaired . | . . . . . . . . Machines Dismantled . | . . . . . . . . Machines Sabotaged . | . . . . . . . . Overloaded Fab Kills . | . . . . . . . . Hacking | -11 -10 -10 -9 -9 -9 -8 -8 --------- Run | Yrd Mat Min Mat Min Exi Min Mat Machines Accessed 20 | . 10 . 5 1 1 . 3 Terminals 14 | . 8 . 4 1 . . 1 Fabricators . | . . . . . . . . Repair Stations . | . . . . . . . . Recycling Units 3 | . 2 . . . . . 1 Scanalyzers 2 | . . . 1 . . . 1 Garrison Access . | . . . . . . . . Total Hacks 63 | . 32 . 16 1 1 . 13 Successful 31 | . 12 . 8 1 1 . 9 Failed 31 | . 20 . 8 . . . 3 Catastrophic 5 | . 1 . 4 . . . . Database Lockouts 1 | . . . . . . . 1 Manual . | . . . . . . . . Terminals 45 | . 27 . 12 1 . . 5 Fabricators . | . . . . . . . . Repair Stations . | . . . . . . . . Recycling Units 9 | . 5 . . . . . 4 Scanalyzers 8 | . . . 4 . . . 4 Garrison Access . | . . . . . . . . Terminal Hacks 20 | . 9 . 5 1 1 . 4 Record 1 | . . . . . 1 . . Prototype ID Bank 1 | . 1 . . . . . . Level Access Points 1 | . . . . . . . 1 Emergency Access Points 3 | . 1 . 1 . . . 1 Alert Level 3 | . 1 . 1 . . . 1 Unreport Threat 1 | . 1 . . . . . . Disarm Traps 1 | . 1 . . . . . . Dispatch Records 3 | . . . 1 1 . . 1 Assault Status 1 | . . . 1 . . . . Recall Investigation 1 | . 1 . . . . . . Hauler Manifests 1 | . 1 . . . . . . Zone Layout 3 | . 2 . 1 . . . . Fabricator Hacks . | . . . . . . . . Repair Station Hacks . | . . . . . . . . Recycling Unit Hacks 6 | . 3 . . . . . 3 Recycle Component 1 | . . . . . . . 1 Process 1 | . . . . . . . 1 Report Inventory 2 | . 2 . . . . . . Retrieve Components 2 | . 1 . . . . . 1 Scanalyzer 5 | . . . 3 . . . 2 Insert Component 1 | . . . 1 . . . . Analyze 1 | . . . 1 . . . . Retrieve Study 3 | . . . 1 . . . 2 Garrison Access Hacks . | . . . . . . . . Unauthorized Hacks . | . . . . . . . . Terminals . | . . . . . . . . Fabricators . | . . . . . . . . Repair Stations . | . . . . . . . . Recycling Units . | . . . . . . . . Scanalyzers . | . . . . . . . . Garrison Access . | . . . . . . . . Data Cores Recovered . | . . . . . . . . Used . | . . . . . . . . Hacking Detections 18 | . 9 . 5 1 . . 3 Full Trace Events 8 | . 2 . 4 . . . 2 Feedback Events . | . . . . . . . . Feedback Blocked . | . . . . . . . . Robot Schematics Acquired . | . . . . . . . . Robots Built . | . . . . . . . . Authchips . | . . . . . . . . Time . | . . . . . . . . Total Robot Build Rating . | . . . . . . . . Part Schematics Acquired 1 | . . . 1 . . . . Parts Built . | . . . . . . . . Authchips . | . . . . . . . . Time . | . . . . . . . . Total Part Build Rating . | . . . . . . . . Part Studies Acquired 3 | . . . 1 . . . 2 Parts Repaired . | . . . . . . . . Time . | . . . . . . . . Parts Recycled 1 | . . . . . . . 1 Recycled Matter 93 | . . . . . . . 93 Retrieved Matter . | . . . . . . . . Retrieved Components 9 | . 9 . . . . . . Parts Scanalyzed 1 | . . . 1 . . . . Part Schematics Acquired 1 | . . . 1 . . . . Parts Damaged . | . . . . . . . . Bothacking | -11 -10 -10 -9 -9 -9 -8 -8 ------------ Run | Yrd Mat Min Mat Min Exi Min Mat Used RIF Installer . | . . . . . . . . Robots Hacked . | . . . . . . . . Non-combat . | . . . . . . . . Combat . | . . . . . . . . Robot Hacks Applied . | . . . . . . . . Relay Couplers Released . | . . . . . . . . Fabnet Peak Effective % . | . . . . . . . . Robots Rewired 2 | . . . . . 2 . . Allies Hacked . | . . . . . . . . Hacks Repelled . | . . . . . . . . Allies | -11 -10 -10 -9 -9 -9 -8 -8 -------- Run | Yrd Mat Min Mat Min Exi Min Mat Total Allies 4 | . . 2 . . 2 . . Largest Group 2 | . . 2 . . 2 2 2 Highest-Rated Group 46 | . . 46 . . 29 29 29 Highest-Rated Ally 31 | . . 31 . . 21 21 21 Total Orders . | . . . . . . . . Ally Attacks 17 | . . 10 . . . . 7 Total Damage 173 | . . 93 . . . . 80 Kills 2 | . . 1 . . . . 1 Allies Corrupted . | . . . . . . . . Allies Melted . | . . . . . . . . Intel | -11 -10 -10 -9 -9 -9 -8 -8 ------- Run | Yrd Mat Min Mat Min Exi Min Mat Active Infowar (turns) 692 | . 691 . . . . . 1 Sensors 1 | . . . . . . . 1 Structural 691 | . 691 . . . . . . Robot Analysis Total . | . . . . . . . . Derelict Logs Recovered 2 | . . 1 . 1 . . . Drone Launches . | . . . . . . . . Drone Recoveries . | . . . . . . . . Exploration | -11 -10 -10 -9 -9 -9 -8 -8 ------------- Run | Yrd Mat Min Mat Min Exi Min Mat Turns Passed 7572 | 99 2665 505 1387 537 634 836 909 Spaces Moved 2809 | 61 1031 180 514 209 254 344 216 Core 30 | 28 . . . . . . 2 Treads 1888 | 33 322 177 437 209 254 344 112 Legs 891 | . 709 3 77 . . . 102 Wheels . | . . . . . . . . Hover . | . . . . . . . . Flight . | . . . . . . . . Fastest Speed 50 | 50 160 240 175 240 240 240 240 Average Speed 239 | 140 239 241 230 240 240 240 279 Slowest Speed 1500 | 160 260 470 240 240 240 240 1500 Overloaded Moves . | . . . . . . . . Propulsion Burnouts . | . . . . . . . . Robots Hopped . | . . . . . . . . Potential Cave-ins . | . . . . . . . . Cave-ins Triggered . | . . . . . . . . Exploration Rate (%) 46 | 5 96 41 45 41 53 77 16 Regions Visited 7 Branch Regions 4 Pre-discovered Areas 3 | . . 1 . 1 1 . . Known Exits Taken 6 | . 1 1 1 1 1 1 . Unknown Exits Taken 1 | 1 . . . . . . . Scrap Searched 1 | . . . . . . 1 . Spaces Dug . | . . . . . . . . Terrain Destroyed 55 | . 54 . . . . . 1 Melee . | . . . . . . . . Projectile 1 | . . . . . . . 1 AOE 54 | . 54 . . . . . . Terrain Rammed . | . . . . . . . . Walls Destroyed . | . . . . . . . . Machines Disabled . | . . . . . . . . Actions | -11 -10 -10 -9 -9 -9 -8 -8 --------- Run | Yrd Mat Min Mat Min Exi Min Mat Total 3233 | 74 1131 220 608 221 279 348 352 Wait 16 | . . 16 . . . . . Move 2802 | 60 1030 179 513 208 253 343 216 Hop . | . . . . . . . . Pick Up 75 | 8 29 4 15 . 1 . 18 Fast Attach . | . . . . . . . . Attach 40 | 6 3 2 6 1 . . 22 Detach . | . . . . . . . . Swap 28 | . 10 1 11 . . . 6 Drop 19 | . 8 2 7 . . . 2 Fire 201 | . 44 13 47 12 . . 85 Melee . | . . . . . . . . Ram . | . . . . . . . . Kick 11 | . 7 1 . . . . 3 Crush 16 | . . 2 9 . . 5 . Escape Stasis . | . . . . . . . . Rewire 25 | . . . . . 25 . . Trap . | . . . . . . . . Miscellaneous . | . . . . . . . . Route ------- -11/Scrapyard -10/Materials (discovered 5 exits: *Mat x3 / *Min / *Sub) -10/Mines -9/Materials -9/Mines -9/Exiles (discovered 2 exits: *Min x2) -8/Mines (discovered 2 exits: *Mat x2) -8/Materials (discovered 4 exits: Fac x3 / Sto) History --------- Turn | Location | Event 11 | -11/Scrapyard | Discovered new exit (range 16) 100 | -11/Scrapyard | Entered Materials 125 | -10/Materials | Discovered new exit (range 15) 303 | -10/Materials | Build established: Mutant 504 | -10/Materials | Discovered new exit (range 16) 1141 | -10/Materials | Discovered new exit (range 7) 1167 | -10/Materials | Identified exit to Materials 2023 | -10/Materials | Core integrity fell below 50% 2102 | -10/Materials | Discovered exit to Materials (range 12) 2536 | -10/Materials | Discovered new exit (range 12) 2565 | -10/Materials | Identified exit to Subcaves 2763 | -10/Materials | Identified exit to Mines 2765 | -10/Materials | Entered Mines 3057 | -10/Mines | Assembled infested the area 3062 | -10/Mines | Assisted by a Guerilla fighting off Assembled 3240 | -10/Mines | Discovered exit to Materials (range 9) 3270 | -10/Mines | Entered Materials 3270 | -9/Materials | Evolved 2 slots: Propulsion x2 3544 | -9/Materials | Build established: Scavenger-Mutant 3886 | -9/Materials | Discovered new exit (range 9) 3905 | -9/Materials | Identified exit to Mines 4657 | -9/Materials | Entered Mines 4766 | -9/Mines | Learned location of Storage (-8) 5177 | -9/Mines | Deemed a non-threat by the Exiles lab entrance 5179 | -9/Mines | Discovered new exit (range 5) 5189 | -9/Mines | Identified exit to Exiles 5194 | -9/Mines | Entered Exiles 5194 | -9/Exiles | Found Exiles lab destroyed 5252 | -9/Exiles | Discovered new exit (range 15) 5338 | -9/Exiles | Identified exit to Mines 5708 | -9/Exiles | Learned location of Zion (-7) 5796 | -9/Exiles | Discovered exit to Mines (range 14) 5828 | -9/Exiles | Entered Mines 5828 | -8/Mines | Accompanied by 2 allies 5852 | -8/Mines | Discovered new exit (range 8) 5869 | -8/Mines | Identified exit to Materials 6628 | -8/Mines | Discovered exit to Materials (range 15) 6664 | -8/Mines | Entered Materials 6664 | -8/Materials | Accompanied by 2 allies 6664 | -8/Materials | Evolved 2 slots: Utility x2 6665 | -8/Materials | Identified exit to Storage 6698 | -8/Materials | Central database locked down 7012 | -8/Materials | Lost 4 parts (1p3n) 7195 | -8/Materials | Identified exit to Factory 7315 | -8/Materials | Garrison activated, responded to threat 7350 | -8/Materials | Core integrity fell below 50% 7369 | -8/Materials | System corruption reached 10% 7400 | -8/Materials | Destroyed 10 combat bots 7406 | -8/Materials | Lost 12 parts (2p6n3u1w) 7484 | -8/Materials | Core integrity fell below 20% 7506 | -8/Materials | Lost 3 parts (1p2w) 7573 | -8/Materials | Destroyed by H-55 Commando with Gauss Rifle Last Messages --------------- K-01 Serf collects debris. U-05 Engineer lays Concrete. K-01 Serf collects debris. U-05 Engineer lays Concrete. Acquired Corrupted Aluminum Leg+. U-05 Engineer lays Concrete. R-06 Scavenger collects Corrupted Tractor Beam. R-06 Scavenger collects Heat Sink. System corrupted: IFF burst signal emitted. Acquired Corrupted Lgt. Treads. Acquired Corrupted Aluminum Leg+. Lgt. Treads destroyed. Penetrated by Slug. Aluminum Leg+ destroyed. Particle Gun destroyed. Hvy. Assault Rifle+ destroyed. Identified Backup Plating I. Penetrated by Slug. Integrated Corrupted Lgt. Treads (+6). Penetrated by Slug. Map ----- +----------------------------------------------------+ | ?????????????????????????????????????????????????? | | ?????????????????????????????????????????????????? | | ?????????????????????????????????????????????????? | | ?????????????????????????????????????????????????? | | ?????????????????????????????????????????????????? | | ?????????????????????????????????????????????????? | | ?????????????????????????????????????????????????? | | ?????????????????????????????????????????????????? | | ?????????????????????????????????????????????????? | | ?????????????????????????????????????????????????? | | ?????????????????????????????????????????????????? | | ?????????????????????????????????????????????????? | | ?????????????????????????????????????????????????? | | ?????????????????????????????????????????????????? | | ?????????????????????????????????????????????????? | | ?????????????????????????????????????????????????? | | ?????????????????????????????????????????????????? | | ?????????????????????????????????????????????????? | | ?????????????????????????????????????????????????? | | ?????????????????????????????????????????????????? | | ?????????????????????????????????????????????????? | | ?????????????????????????????????????????????????? | | ?????????????????????????????????????????????????? | | ????????????????????########?????????????????????? | | ????????????????????# #?????????????????????? | | ????#???????????????# =@ #?????????????????????? | | ????# ??????????????# [ #?????????????????????? | | ????# ?????????????# =[ #?????????????????????? | | ????#^ ^????????????# #?????????????????????? | | ???## ##??????????#%%%u=%#?????????????????????? | | ???# ###+########Y####h########??????????????? | | ???# * % =%%%= ?? ???????? | | ???+ %! ? = %% ???????? | | ???# r ? % ? ???????? | | ???# ###+######+######+######+### ????????? | | ???## ## T #? ??????????????????????????????? | | ??### ## # ???????????????????????????????? | | ??? # ## """ #????????????????????????????????? | | ????+% =## """ #????????????????????????????????? | | ????# %## """ #????????????????????????????????? | | ????# ## #????????????????????????????????? | | ##### #####+###########????????????????????????? | | !% ????????????????????? | | ????????????????????? | | !%! ????????????????????? | | #####+####+############## #?????????????????????? | | #???? ?????????????????????????????????????????? | | #????" ????????????????????????????????????????? | | #????" = +??????????????????????????????????????? | | #????? ???????????????????????????????????????? | +----------------------------------------------------+ Best States ------------- Heat Dissipation 31 Energy Generation 14 Energy Capacity 265 Matter Stores 300 Matter Capacity 300 Sight Range 16 Terrain Scan Density 10 Armor Coverage 150 Core Shielding 20 Evasion (%) 40 Recoil Reduction 4 Offensive Hacking 11 Item Schematics ----------------- Core Shielding | -9/Materials | Scanalyzed Robot Schematics ------------------ None Fabricated ------------ Nothing Repaired ---------- Nothing Studied --------- Aluminum Leg | -9/Materials | Hacked Imp. Ion Engine | -8/Materials | Hacked Hvy. Assault Rifle | -8/Materials | Hacked Alien Tech Used ----------------- None Achievements -------------- A New Friend Challenges ------------ None Game ------ Seed ThrusterBottomlessJammer Manual? 0 Play Time 00:41:57 Cumulative 8.1 hours Start 2025.12.26 @ 18:15:46 End 2025.12.26 @ 18:57:12 Sessions 1 Manual Loads 0 Difficulty Rogue Special Mode None Game No. 22 Rogue 22 Adventurer 0 Explorer 0 Win Type - Total 0 Types 0/0/0/0/0/0/0/0/0/0 Lore% 2 Gallery% 11 Achievement% 12 Wizard Run 0 Options --------- Layout 1 ASCII 0 Keyboard 0 Movement Arrows Keybinds 0 Fullscreen 1 Font 16/SmallcapsGlow Map View 27x19 Zoom Use 20% Tactical HUD 0 Map Filters NONE Filters NONE Steam 1 RUN: 3d0239f7-9032-450b-bc37-f5a5b3fc417b